bitfinex-derivatives/quotes_SOLF0:USTF0_20250603
["timestamp","ask_amount","ask_price","bid_price","bid_amount"]
[1748943627657,2.54455928,159.76,159.75,13.05798757]
[1748943627959,2.54455928,159.76,159.75,10.40848375]
[1748943628355,2.54455928,159.76,159.75,13.05795689]
[1748943628551,2.54455928,159.76,159.75,10.40848375]
[1748943628761,2.54455928,159.76,159.75,13.05795838]
[1748943629057,2.54455928,159.76,159.75,13.05780296]
[1748943629256,2.54455928,159.76,159.75,10.40848375]
[1748943629458,2.54455928,159.76,159.75,13.05782213]
[1748943629860,2.54455928,159.76,159.75,10.40848375]
[1748943630462,2.54455928,159.76,159.75,18.87319477]
[1748943630654,2.54455928,159.76,159.75,16.22401121]
[1748943630860,2.54455928,159.76,159.75,18.87318213]
[1748943631154,2.54455928,159.76,159.75,18.87551178]
[1748943631363,2.54455928,159.76,159.75,16.22401121]
[1748943631562,2.54455928,159.76,159.75,18.87551029]
[1748943631860,2.54455928,159.76,159.75,16.22401121]
[1748943632068,2.54455928,159.76,159.75,18.87548941]
[1748943632269,2.54455928,159.76,159.75,16.22385787]
[1748943633159,2.54455928,159.76,159.75,10.40848375]
[1748943633361,2.54455928,159.76,159.75,13.05909248]
[1748943633564,2.54455928,159.76,159.75,13.05909099]
[1748943633759,2.54455928,159.76,159.75,10.40848375]
[1748943634163,2.54455928,159.76,159.75,13.05909397]
[1748943634364,2.54455928,159.76,159.75,10.40848375]
[1748943634566,35.71238375,159.81,159.79,6.2544]
[1748943634768,31.56,159.81,159.79,6.2544]
[1748943634965,35.71238375,159.81,159.79,6.2544]
[1748943635167,4.2125,159.82,159.79,6.2544]
[1748943635367,149.8189193,159.84,159.8,6.254]
[1748943635673,4.15238375,159.83,159.8,6.254]
[1748943635868,6.2534,159.82,159.79,4.15238375]
[1748943636062,6.2534,159.82,159.79,10.40678375]
[1748943636461,10.40548375,159.83,159.79,4.15238375]
[1748943636763,6.2531,159.83,159.8,6.2539]
[1748943636965,6.2535,159.82,159.79,4.15238375]
[1748943637268,10.40588375,159.82,159.79,10.40668375]
[1748943637461,10.40588375,159.82,159.8,2.6497899]
[1748943637665,10.40588375,159.82,159.79,4.15238375]
[1748943637861,10.40588375,159.82,159.78,12.10667557]
[1748943638066,10.40588375,159.82,159.78,16.25905932]
[1748943638564,4.15238375,159.79,159.78,0.04262029]
[1748943639068,4.15238375,159.79,159.78,2.69378178]
[1748943639265,10.40688375,159.79,159.78,2.69378398]
[1748943639464,10.40688375,159.79,159.78,0.04262029]
[1748943640462,6.2545,159.79,159.78,0.04262029]
[1748943640666,10.40688375,159.79,159.78,2.69327001]
[1748943640868,6.254,159.81,159.78,0.04262029]
[1748943641069,4.15238375,159.79,159.78,8.94804341]
[1748943641268,6.48666196,159.81,159.78,0.04262029]
[1748943641468,6.2544,159.8,159.79,2.65058878]
[1748943641672,6.2544,159.8,159.78,0.04262029]
[1748943641870,31.56,159.84,159.79,2.65055809]
[1748943642075,6.2542,159.8,159.78,0.04262029]
[1748943643174,6.2545,159.79,159.78,0.04262029]
[1748943643379,12.74116196,159.79,159.78,0.04262029]
[1748943643676,12.74116196,159.79,159.78,2.69364596]
[1748943644067,12.74116196,159.79,159.78,0.04262029]
[1748943644773,12.74116196,159.79,159.78,2.69337442]
[1748943645180,12.74116196,159.79,159.78,0.04262029]
[1748943645373,6.48666196,159.81,159.78,0.04262029]
[1748943645575,6.48666196,159.83,159.79,2.65010266]
[1748943645775,6.2536,159.82,159.79,6.2542]
[1748943646176,6.2536,159.82,159.78,0.04262029]
[1748943646379,6.2536,159.82,159.79,6.2543]
[1748943646675,6.2534,159.82,159.8,2.65004915]
[1748943646874,6.2534,159.82,159.79,6.2543]
[1748943647279,6.2534,159.82,159.8,2.65004807]
[1748943647481,6.2538,159.81,159.79,6.2543]
[1748943647779,6.48666196,159.83,159.8,2.6501395]
[1748943648077,6.48666196,159.83,159.81,2.65014335]
[1748943648280,38.04666196,159.84,159.8,6.2541]
[1748943648483,38.04666196,159.84,159.81,2.64984522]
[1748943648679,44.29936196,159.84,159.82,2.64984522]
[1748943648980,38.04666196,159.84,159.81,0.04761115]
[1748943649278,6.2532,159.83,159.81,0.04761115]
[1748943649579,1.9918,159.86,159.81,0.04761115]
[1748943649776,6.2524,159.85,159.82,6.2532]
[1748943649974,6.2524,159.85,159.83,2.64916542]
[1748943650169,6.2524,159.85,159.82,6.2532]
[1748943650377,6.2524,159.85,159.83,6.2529]
[1748943651002,31.46,159.87,159.83,6.2529]
[1748943651003,6.252,159.86,159.83,6.2529]
[1748943651485,31.46,159.87,159.83,6.2529]
[1748943651689,6.2519,159.86,159.83,6.2529]
[1748943651984,31.46,159.87,159.83,6.2529]
[1748943652382,6.2524,159.85,159.82,6.2532]
[1748943652580,31.46,159.87,159.81,0.04761115]
[1748943652783,31.46,159.87,159.82,2.64925727]
[1748943652984,31.46,159.87,159.83,8.90193857]
[1748943653183,31.46,159.87,159.83,6.2527]
[1748943653389,6.2521,159.86,159.83,6.2527]
[1748943653983,6.2522,159.85,159.84,2.64899582]
[1748943654186,6.48666196,159.86,159.81,0.04761115]
[1748943654383,8.47216196,159.86,159.82,2.64935775]
[1748943654587,8.47216196,159.86,159.83,2.64952757]
[1748943654789,8.47216196,159.86,159.81,0.04761115]
[1748943655182,6.2533,159.83,159.81,0.04761115]
[1748943655378,6.2533,159.83,159.82,2.64974119]
[1748943655583,6.2533,159.83,159.81,0.04761115]
[1748943656690,6.2533,159.83,159.82,2.64984832]
[1748943656890,6.2533,159.83,159.82,2.64998427]
[1748943657090,6.2533,159.83,159.82,2.64996644]
[1748943657387,6.2534,159.82,159.81,0.04761115]
[1748943658296,6.2532,159.83,159.81,0.04761115]
[1748943658595,6.2532,159.83,159.82,2.65107903]
[1748943658796,6.2532,159.83,159.81,0.04761115]
[1748943659990,6.2532,159.83,159.82,2.65142035]
[1748943660191,6.2532,159.83,159.81,0.04761115]
[1748943660393,12.74006196,159.82,159.81,0.04761115]
[1748943660593,12.74006196,159.82,159.76,5.79043278]
[1748943660594,6.48666196,159.8,159.74,31.46]
[1748943660793,6.2554,159.77,159.75,2.65343886]
[1748943660994,6.2554,159.77,159.74,6.2563]
[1748943661394,6.2558,159.76,159.73,5.79043278]
[1748943661593,6.2558,159.76,159.74,0.04704619]
[1748943661895,6.30190453,159.77,159.74,6.30354619]
[1748943662299,6.30190453,159.77,159.75,2.65396274]
[1748943662693,6.30190453,159.77,159.74,6.30354619]
[1748943662894,6.30190453,159.77,159.75,2.65401341]
[1748943663093,6.30190453,159.77,159.76,2.65401341]
[1748943663293,6.2557,159.76,159.74,6.30354619]
[1748943663496,0.04640453,159.77,159.74,0.04704619]
[1748943663902,6.2557,159.76,159.74,0.04704619]
[1748943664399,6.2557,159.76,159.75,2.65444105]
[1748943664694,6.2557,159.76,159.74,0.04704619]
[1748943668504,6.2557,159.76,159.75,2.6537338]
[1748943668704,6.2557,159.76,159.75,2.65373493]
[1748943668903,6.2557,159.76,159.75,2.65362984]
[1748943669105,6.2557,159.76,159.74,0.04704619]
[1748943669496,6.2557,159.76,159.75,2.65376612]
[1748943669893,6.2557,159.76,159.74,0.04704619]
[1748943670791,6.2557,159.76,159.75,2.65426802]
[1748943670995,6.2557,159.76,159.74,0.04704619]
[1748943671201,0.04640453,159.77,159.74,0.04704619]
[1748943671503,0.04640453,159.77,159.75,2.65426753]
[1748943671706,6.2561,159.75,159.74,0.04704619]
[1748943671891,0.04640453,159.77,159.74,0.04704619]
[1748943672096,6.256,159.76,159.75,2.65509056]
[1748943672602,12.74266196,159.76,159.75,2.65509056]
[1748943672799,12.74266196,159.76,159.75,5.31018659]
[1748943672999,12.74266196,159.76,159.75,2.65509056]
[1748943673201,12.74266196,159.76,159.75,5.31020153]
[1748943673401,12.74266196,159.76,159.75,2.65509056]
[1748943673703,12.74266196,159.76,159.75,5.31022747]
[1748943674002,12.74266196,159.76,159.75,5.3104137]
[1748943674303,12.74266196,159.76,159.75,2.65509056]
[1748943675002,12.74266196,159.76,159.75,5.31035509]
[1748943675206,12.74266196,159.76,159.75,2.65509056]
[1748943676403,12.74266196,159.76,159.75,5.31055956]
[1748943676609,12.74266196,159.76,159.75,2.65509056]
[1748943678006,12.74266196,159.76,159.75,5.31030414]
[1748943678205,12.74266196,159.76,159.75,2.65509056]
[1748943680712,12.74266196,159.76,159.75,5.31035427]
[1748943681213,12.78856649,159.77,159.75,2.65509056]
[1748943681609,6.53306649,159.77,159.75,2.65509056]
[1748943682810,6.2557,159.76,159.75,2.65509056]
[1748943683112,6.53306649,159.77,159.75,2.65509056]
[1748943683113,0.04640453,159.77,159.75,2.65509056]
[1748943683314,12.74236196,159.76,159.75,2.65509056]
[1748943685205,6.2557,159.76,159.75,5.31168463]
[1748943685405,6.30180453,159.77,159.75,2.65509056]
[1748943685614,6.30180453,159.77,159.76,2.65597002]
[1748943685818,6.30180453,159.77,159.75,2.65509056]
[1748943686511,0.04640453,159.77,159.76,2.65570293]
[1748943686711,0.04640453,159.77,159.75,2.65509056]
[1748943687113,0.04640453,159.77,159.76,2.65693995]
[1748943687308,0.04640453,159.77,159.76,2.65682363]
[1748943687508,0.04640453,159.77,159.75,8.91109056]
[1748943687915,0.04640453,159.77,159.76,2.65678537]
[1748943688112,6.30170453,159.77,159.75,2.65509056]
[1748943688316,6.30170453,159.77,159.76,2.65680507]
[1748943688518,6.30170453,159.77,159.76,2.65680775]
[1748943688914,6.30170453,159.77,159.75,2.65509056]
[1748943689318,6.30170453,159.77,159.76,2.65678855]
[1748943689517,6.30170453,159.77,159.75,2.65509056]
[1748943690119,6.30170453,159.77,159.76,2.65678855]
[1748943690328,6.30170453,159.77,159.76,2.65678706]
[1748943690524,6.30170453,159.77,159.75,2.65509056]
[1748943691018,6.30170453,159.77,159.76,2.65681691]
[1748943691220,0.04640453,159.77,159.75,2.65509056]
[1748943692322,6.30170453,159.77,159.75,2.65509056]
[1748943692512,6.30170453,159.77,159.76,2.65678889]
[1748943692717,0.04640453,159.77,159.75,2.65509056]
[1748943693118,0.04640453,159.77,159.76,2.65677117]
[1748943693318,4.19918734,159.77,159.75,2.65509056]
[1748943693817,4.19918734,159.77,159.76,2.65679038]
[1748943694016,6.2557,159.76,159.75,2.65509056]
[1748943694225,6.2557,159.76,159.75,5.31188094]
[1748943694427,10.40848281,159.76,159.75,2.65509056]
[1748943694720,10.40848281,159.76,159.75,5.31190014]
[1748943694920,10.40848281,159.76,159.75,5.31191887]
[1748943695125,10.40848281,159.76,159.75,5.31191738]
[1748943695328,10.40848281,159.76,159.75,2.65509056]
[1748943696421,10.40848281,159.76,159.75,5.31191738]
[1748943696725,10.40848281,159.76,159.75,5.31191887]
[1748943696919,10.40848281,159.76,159.75,5.31175633]
[1748943697232,10.40848281,159.76,159.75,2.65509056]
[1748943697623,10.40848281,159.76,159.75,5.31087253]
[1748943697831,10.40848281,159.76,159.75,2.65509056]
[1748943698430,10.40848281,159.76,159.75,5.31055565]
[1748943698732,10.40848281,159.76,159.75,5.31027713]
[1748943698926,10.40848281,159.76,159.75,2.65509056]
[1748943699831,10.40848281,159.76,159.75,5.310427]
[1748943700024,10.40848281,159.76,159.75,2.65509056]
[1748943701433,10.40848281,159.76,159.75,5.31044721]
[1748943701638,10.40848281,159.76,159.75,2.65509056]
[1748943702136,10.40848281,159.76,159.75,5.31056949]
[1748943702434,10.40848281,159.76,159.75,2.65509056]
[1748943704031,10.40848281,159.76,159.75,5.31057098]
[1748943704336,10.40848281,159.76,159.75,2.65509056]
[1748943704737,10.40848281,159.76,159.75,5.31060025]
[1748943705130,10.40848281,159.76,159.75,2.65509056]
[1748943705433,10.40848281,159.76,159.75,5.31060025]
[1748943705838,10.40848281,159.76,159.75,2.65509056]
[1748943707736,10.40848281,159.76,159.75,5.31058971]
[1748943708039,10.40848281,159.76,159.75,2.65509056]
[1748943708442,10.40848281,159.76,159.75,5.31044572]
[1748943708737,10.40848281,159.76,159.75,5.3103868]
[1748943709041,10.40848281,159.76,159.75,2.65509056]
[1748943710235,10.40848281,159.76,159.75,5.31061663]
[1748943710637,10.40848281,159.76,159.75,2.65509056]
[1748943711440,10.40848281,159.76,159.75,5.31061781]
[1748943711645,10.40848281,159.76,159.75,5.31058981]
[1748943711842,10.40848281,159.76,159.75,2.65509056]
[1748943712040,10.40848281,159.76,159.75,5.31057059]
[1748943712237,10.40848281,159.76,159.75,2.65509056]
[1748943712743,6.2561,159.75,159.74,0.04704619]
[1748943712930,10.40888281,159.75,159.74,0.04704619]
[1748943716739,6.2561,159.75,159.74,0.04704619]
[1748943716939,10.40888281,159.75,159.74,0.04704619]
[1748943719635,10.40888281,159.75,159.71,5.82514177]
[1748943719636,6.2573,159.72,159.71,5.82514177]
[1748943719944,4.15278281,159.72,159.7,5.82514177]
[1748943720249,6.2581,159.7,159.69,5.82514177]
[1748943720462,6.2581,159.7,159.66,7.59930442]
[1748943720463,4.15278281,159.7,159.68,5.82531703]
[1748943720769,121.1,159.72,159.67,5.86612788]
[1748943720770,6.2588,159.68,159.67,5.86612788]
[1748943720950,10.41158281,159.68,159.67,0.04081085]
[1748943722558,4.15278281,159.68,159.63,5.82531703]
[1748943722864,4.15278281,159.64,159.61,12.08486743]
[1748943723053,4.15278281,159.62,159.61,12.08486743]
[1748943723258,4.15278281,159.62,159.61,6.2616]
[1748943723568,0.04329999,159.63,159.62,6.2612]
[1748943723763,4.1960828,159.63,159.62,12.07647433]
[1748943724056,4.1960828,159.63,159.62,6.2612]
[1748943725354,0.04329999,159.63,159.62,6.2612]
[1748943725554,0.04329999,159.63,159.61,12.07667433]
[1748943725763,0.04329999,159.63,159.61,6.2614]
[1748943726362,0.04329999,159.63,159.6,12.12494523]
[1748943726564,0.04329999,159.63,159.6,12.11487467]
[1748943726865,0.04329999,159.63,159.6,12.1149466]
[1748943727662,6.54200621,159.63,159.6,5.8530466]
[1748943727861,6.54200621,159.63,159.6,0.0477709]
[1748943729065,6.2613,159.62,159.6,0.0477709]
[1748943729564,6.54200621,159.63,159.6,0.0477709]
[1748943729764,12.80300621,159.63,159.6,0.0477709]
[1748943735360,6.2612,159.62,159.6,0.0477709]
[1748943737469,6.2612,159.62,159.6,6.3096709]
[1748943738467,6.2612,159.62,159.6,0.0477709]
[1748943740469,6.2616,159.61,159.6,0.0477709]
[1748943741273,6.2613,159.62,159.6,0.0477709]
[1748943746575,6.2613,159.62,159.6,6.3096709]
[1748943747275,4.16029517,159.61,159.6,6.3096709]
[1748943749477,4.16029517,159.61,159.6,0.0477709]
[1748943750175,4.16029517,159.61,159.6,6.3097709]
[1748943752282,2.043,159.7,159.6,4.20806607]
[1748943752583,4.16029517,159.66,159.62,4.16029517]
[1748943752774,4.16029517,159.67,159.63,4.16029517]
[1748943753083,4.16029517,159.67,159.64,6.26]
[1748943753286,10.46199317,159.67,159.64,0.0473161]
[1748943754483,10.46199317,159.67,159.65,6.2598]
[1748943754883,4.20269317,159.67,159.65,6.2598]
[1748943756076,10.46199317,159.67,159.65,6.2598]
[1748943757281,4.20269317,159.67,159.65,6.2598]
[1748943757683,4.20269317,159.67,159.64,10.46791127]
[1748943757883,10.46199317,159.67,159.64,4.20761127]
[1748943758585,10.46199317,159.67,159.64,10.46791127]
[1748943758786,4.20269317,159.67,159.64,10.46791127]
[1748943759986,4.20269317,159.67,159.64,6.3076161]
[1748943760582,10.46219317,159.67,159.65,6.26]
[1748943761788,10.46219317,159.67,159.64,6.3075161]
[1748943761981,6.2597,159.66,159.64,6.3075161]
[1748943762279,4.16029517,159.65,159.64,0.0473161]
[1748943762480,35.50029517,159.65,159.64,0.0473161]
[1748943762677,41.76029517,159.65,159.64,0.0473161]
[1748943765578,37.6,159.65,159.64,0.0473161]
[1748943765779,41.76029517,159.65,159.64,0.0473161]
[1748943767887,37.6,159.65,159.64,0.0473161]
[1748943768090,41.76029517,159.65,159.64,0.0473161]
[1748943769490,35.50029517,159.65,159.64,0.0473161]
[1748943769788,10.42009517,159.66,159.64,5.86841527]
[1748943770284,6.2601,159.65,159.64,0.0473161]
[1748943770676,10.42009517,159.66,159.64,5.86841527]
[1748943771587,6.2598,159.66,159.64,5.86841527]
[1748943771989,6.2598,159.66,159.64,6.3077161]
[1748943772883,6.2598,159.66,159.64,12.12881527]
[1748943773091,6.2598,159.66,159.64,5.86841527]
[1748943773589,6.2598,159.66,159.64,5.86583101]
[1748943773985,6.2598,159.66,159.65,5.81851491]
[1748943776991,10.46219317,159.67,159.65,5.81851491]
[1748943777391,10.46219317,159.67,159.64,6.3077161]
[1748943777692,10.46219317,159.67,159.65,5.81720989]
[1748943777892,6.301898,159.67,159.65,5.81720989]
[1748943779895,6.2597,159.66,159.65,5.81720989]
[1748943780797,6.2597,159.66,159.65,5.81707724]
[1748943781094,0.042398,159.67,159.65,9.97737241]
[1748943781295,0.042398,159.67,159.66,4.16029517]
[1748943781790,0.042398,159.67,159.65,5.81707724]
[1748943782290,6.301898,159.67,159.65,5.81707724]
[1748943782892,6.301898,159.67,159.65,9.97737241]
[1748943783094,6.301898,159.67,159.66,5.81707724]
[1748943783499,6.301898,159.67,159.65,16.23737241]
[1748943783798,6.301898,159.67,159.65,16.2357444]
[1748943784295,0.042398,159.67,159.66,4.16029517]
[1748943784496,0.042398,159.67,159.66,10.41999517]
[1748943786092,0.042398,159.67,159.66,16.2354444]
[1748943789295,0.042398,159.67,159.66,10.41999517]
[1748943791708,0.042398,159.67,159.65,7.59930442]
[1748943791907,6.301698,159.67,159.66,9.97547851]
[1748943792606,0.042398,159.67,159.66,9.97547851]
[1748943793197,0.042398,159.67,159.66,5.81518334]
[1748943794004,0.042398,159.67,159.66,12.07488334]
[1748943794201,0.042398,159.67,159.66,13.85900442]
[1748943794403,0.042398,159.67,159.66,6.2597]
[1748943794909,6.2577,159.71,159.69,6.2583]
[1748943795808,37.61819072,159.72,159.68,5.86114447]
[1748943796007,31.36069072,159.72,159.68,5.86114447]
[1748943796611,6.2579,159.71,159.69,6.2582]
[1748943797311,6.2579,159.71,159.69,12.07437607]
[1748943797507,6.2579,159.71,159.68,12.11984447]
[1748943797705,6.2581,159.7,159.68,12.11984447]
[1748943798506,6.2585,159.69,159.68,0.0449684]
[1748943798704,6.49462602,159.69,159.66,5.81617607]
[1748943799213,6.2591,159.68,159.66,5.81617607]
[1748943799404,4.0758,159.7,159.66,12.07577607]
[1748943799611,6.2588,159.69,159.66,12.08053678]
[1748943799813,6.2588,159.69,159.66,12.12727661]
[1748943800010,6.2589,159.68,159.66,12.12727661]
[1748943800215,6.2589,159.68,159.66,5.86767661]
[1748943800418,4.1209518,159.7,159.66,5.86767661]
[1748943800718,4.1209518,159.7,159.66,12.12727661]
[1748943801217,6.2588,159.69,159.66,12.12727661]
[1748943802219,6.2588,159.69,159.66,5.86767661]
[1748943802717,6.2588,159.69,159.66,12.12717661]
[1748943803418,6.2588,159.69,159.66,6.30623983]
[1748943803622,6.2588,159.69,159.66,12.12727809]
[1748943805818,4.1209518,159.7,159.66,5.86777809]
[1748943806017,4.1209518,159.7,159.66,0.04673983]
[1748943807221,6.2592,159.68,159.66,0.04673983]
[1748943807721,4.1209518,159.7,159.66,0.04673983]
[1748943807922,6.2588,159.69,159.66,6.30633983]
[1748943808121,6.2588,159.69,159.66,12.12896821]
[1748943808624,6.2589,159.68,159.66,12.12896821]
[1748943808812,6.2589,159.68,159.66,5.86936821]
[1748943813617,6.2593,159.67,159.66,5.86936821]
[1748943814021,6.2593,159.67,159.66,0.04673983]
[1748943814228,6.2593,159.67,159.66,5.86936821]
[1748943815227,6.2593,159.67,159.66,5.87461016]
[1748943817229,6.259,159.68,159.66,5.87461016]
[1748943819127,6.259,159.68,159.66,0.04673983]
[1748943819425,6.259,159.68,159.67,5.82858903]
[1748943820129,6.2593,159.67,159.66,0.04673983]
[1748943820322,4.1209518,159.7,159.66,5.8747302]
[1748943820625,4.1209518,159.7,159.66,12.1341302]
[1748943821029,6.2586,159.69,159.67,6.2592]
[1748943821223,6.2586,159.69,159.66,5.8747302]
[1748943821618,6.2586,159.69,159.66,12.1342302]
[1748943823231,6.2586,159.69,159.66,12.13394271]
[1748943824031,6.49462602,159.69,159.66,5.87444271]
[1748943824332,6.2593,159.67,159.66,5.87444271]
[1748943824530,12.75392602,159.67,159.66,5.87444271]
[1748943824726,12.75392602,159.67,159.59,74.32822708]
[1748943824727,37.79462602,159.67,159.61,7.59930442]
[1748943824921,6.2611,159.63,159.61,7.59930442]
[1748943825427,6.2606,159.64,159.61,7.59930442]
[1748943825628,6.30673721,159.64,159.61,0.04012994]
[1748943826839,6.261,159.63,159.61,0.04012994]
[1748943829034,6.2612,159.62,159.61,0.04012994]
[1748943829424,0.04613721,159.64,159.61,0.04012994]
[1748943830137,6.30693721,159.64,159.61,0.04012994]
[1748943830544,6.30693721,159.64,159.61,6.30152994]
[1748943831941,0.04613721,159.64,159.61,0.04012994]
[1748943832436,0.04613721,159.64,159.62,6.261]
[1748943834933,6.30653721,159.64,159.62,6.261]
[1748943835130,0.04613721,159.64,159.62,6.261]
[1748943840545,6.30663721,159.64,159.62,6.261]
[1748943840743,0.04613721,159.64,159.61,0.04012994]
[1748943841041,6.2611,159.63,159.61,0.04012994]
[1748943841343,6.30673721,159.64,159.61,6.30162994]
[1748943841543,0.04613721,159.64,159.61,0.04012994]
[1748943842843,6.54076323,159.64,159.61,0.04012994]
[1748943843443,6.2611,159.63,159.61,0.04012994]
[1748943847246,6.2611,159.63,159.61,6.30172994]
[1748943847442,6.30673721,159.64,159.61,6.30172994]
[1748943847646,6.30673721,159.64,159.61,0.04012994]
[1748943848145,6.30673721,159.64,159.61,6.30162994]
[1748943848535,4.2218,159.7,159.62,14.09393044]
[1748943848735,4.2218,159.7,159.65,6.49462602]
[1748943849145,4.2218,159.7,159.63,7.59930442]
[1748943849445,4.2218,159.7,159.64,14.09393044]
[1748943849634,0.04782662,159.68,159.65,6.30392787]
[1748943849838,0.04782662,159.68,159.65,0.04412787]
[1748943850037,0.04782662,159.68,159.66,6.2597]
[1748943850238,0.04782662,159.68,159.65,0.04412787]
[1748943850439,6.30672662,159.68,159.65,0.04412787]
[1748943851242,6.30672662,159.68,159.65,6.30392787]
[1748943852438,0.04782662,159.68,159.66,6.2595]
[1748943853651,6.30682662,159.68,159.66,6.2595]
[1748943855847,6.30682662,159.68,159.65,0.04412787]
[1748943855848,6.2593,159.67,159.65,6.30392787]
[1748943857247,0.04782662,159.68,159.65,0.04412787]
[1748943857648,6.2597,159.66,159.65,0.04412787]
[1748943859054,31.32782662,159.68,159.65,0.04412787]
[1748943859249,0.04782662,159.68,159.66,6.2594]
[1748943859752,0.04782662,159.68,159.65,0.04412787]
[1748943859952,0.04782662,159.68,159.66,6.2597]
[1748943861355,0.04782662,159.68,159.65,0.04412787]
[1748943861755,0.04782662,159.68,159.66,6.49462602]
[1748943862750,0.04782662,159.68,159.67,6.2593]
[1748943871175,37.4969,159.74,159.71,6.2575]
[1748943871382,31.24,159.74,159.7,6.49462602]
[1748943871773,6.2576,159.72,159.69,6.2583]
[1748943872178,6.30271713,159.72,159.69,6.30276301]
[1748943872871,6.30271713,159.72,159.7,6.258]
[1748943873072,0.04511713,159.72,159.69,0.04446301]
[1748943873580,0.04511713,159.72,159.71,6.2577]
[1748943875077,0.04511713,159.72,159.69,31.28446301]
[1748943875678,0.04511713,159.72,159.7,6.2578]
[1748943876071,0.04511713,159.72,159.69,31.28446301]
[1748943876379,0.04511713,159.72,159.71,6.2577]
[1748943877877,6.2555,159.77,159.74,6.2562]
[1748943878282,31.24,159.78,159.74,6.2562]
[1748943878476,6.2554,159.77,159.74,6.2562]
[1748943878884,6.2554,159.77,159.74,6.29773699]
[1748943879185,6.2558,159.76,159.74,0.04153699]
[1748943879379,31.24,159.78,159.74,0.04153699]
[1748943879984,6.2556,159.77,159.74,0.04153699]
[1748943881078,6.2557,159.76,159.74,0.04153699]
[1748943881280,31.24,159.78,159.74,0.04153699]
[1748943881484,37.73462602,159.78,159.74,0.04153699]
[1748943882383,6.2561,159.75,159.74,0.04153699]
[1748943889188,6.2574,159.72,159.69,37.73462602]
[1748943889388,6.49462602,159.74,159.68,5.79660607]
[1748943889593,37.73462602,159.74,159.68,5.79660607]
[1748943889787,6.2575,159.72,159.69,6.2584]
[1748943890191,6.30445196,159.72,159.69,6.30571619]
[1748943890795,6.2578,159.71,159.69,0.04731619]
[1748943891788,6.2581,159.7,159.69,0.04731619]
[1748943900305,12.75272602,159.7,159.69,0.04731619]
[1748943900604,6.2597,159.66,159.64,5.81158841]
[1748943900795,37.71462602,159.7,159.64,5.81158841]
[1748943900999,37.4783,159.7,159.65,5.81158841]
[1748943901395,37.4783,159.7,159.66,6.305245]
[1748943901396,0.04233843,159.69,159.66,6.305245]
[1748943901705,6.30083843,159.69,159.66,6.305245]
[1748943902503,0.04233843,159.69,159.67,6.2593]
[1748943903505,0.04233843,159.69,159.68,6.2589]
[1748943903804,0.04233843,159.69,159.67,5.81354152]
[1748943904201,0.04233843,159.69,159.68,6.2589]
[1748943904402,0.04233843,159.69,159.67,5.81354152]
[1748943904705,6.30103843,159.69,159.66,12.35391254]
[1748943904905,0.04233843,159.69,159.66,0.045745]
[1748943905107,6.2593,159.67,159.66,0.045745]
[1748943905406,0.04233843,159.69,159.66,0.045745]
[1748943905607,31.26233843,159.69,159.66,0.045745]
[1748943905995,37.75696445,159.69,159.66,0.045745]
[1748943906208,6.2593,159.67,159.66,0.045745]
[1748943912305,6.2608,159.63,159.62,5.81658697]
[1748943912509,6.49462602,159.67,159.6,87.65895951]
[1748943912710,2.1289,159.68,159.65,6.26]
[1748943912910,6.2591,159.68,159.65,6.26]
[1748943913218,6.2591,159.68,159.62,12.31121299]
[1748943913219,31.22,159.69,159.62,12.31121299]
[1748943913414,6.30264355,159.67,159.64,12.79452128]
[1748943913608,0.04314355,159.67,159.64,6.53422128]
[1748943914522,6.30264355,159.67,159.64,12.79442128]
[1748943915012,6.30264355,159.67,159.64,6.53422128]
[1748943915808,6.30264355,159.67,159.64,12.79442128]
[1748943916005,6.2598,159.66,159.64,6.53422128]
[1748943916608,6.2598,159.66,159.64,0.03959526]
[1748943917925,6.2601,159.65,159.64,0.03959526]
[1748943918222,6.2601,159.65,159.64,2.70390578]
[1748943918519,6.2601,159.65,159.64,0.03959526]
[1748943918819,6.2597,159.66,159.64,0.03959526]
[1748943919021,6.2597,159.66,159.65,2.66411579]
[1748943919213,6.2597,159.66,159.65,2.66400132]
[1748943919711,6.2597,159.66,159.65,2.66406312]
[1748943919917,6.2597,159.66,159.64,0.03959526]
[1748943920110,6.2597,159.66,159.65,2.66401691]
[1748943920425,0.04314355,159.67,159.64,0.03959526]
[1748943920426,6.2601,159.65,159.64,0.03959526]
[1748943920808,0.04314355,159.67,159.64,2.70371875]
[1748943921008,6.2598,159.66,159.64,0.03959526]
[1748943921417,0.04314355,159.67,159.65,6.49462602]
[1748943921828,0.04314355,159.67,159.66,2.66343807]
[1748943922013,0.04314355,159.67,159.66,6.2597]
[1748943922317,0.04314355,159.67,159.66,8.92273262]
[1748943922508,0.04314355,159.67,159.65,12.75452602]
[1748943922714,0.04314355,159.67,159.66,2.6630574]